bitfinex/quotes_BTCUSD_20220307
["timestamp","ask_amount","ask_price","bid_price","bid_amount"]
[1646687697004,0.27146897,37868.0,37867.0,0.1653]
[1646687697206,0.0754577,37868.0,37867.0,0.1653]
[1646687697806,1.6,37867.0,37856.0,0.01319]
[1646687698009,0.0486,37866.0,37856.0,0.01319]
[1646687698245,0.0486,37866.0,37853.0,0.1998]
[1646687698246,0.96779997,37860.0,37853.0,0.1998]
[1646687698441,0.8088,37858.0,37853.0,0.1998]
[1646687698641,0.8574,37857.0,37853.0,0.1998]
[1646687698841,0.41680559,37859.0,37853.0,0.1998]
[1646687698842,0.11634056,37854.0,37853.0,0.1998]
[1646687699038,0.28343123,37856.0,37854.0,0.18408112]
[1646687699039,0.23483123,37856.0,37854.0,0.18408112]
[1646687699238,0.06725944,37855.0,37854.0,0.18408112]
[1646687699440,0.2510589,37855.0,37854.0,0.18408112]
[1646687699641,0.3510589,37855.0,37854.0,0.18408112]
[1646687699842,0.51005887,37855.0,37854.0,0.18408112]
[1646687700042,0.51005887,37855.0,37835.0,0.17294221]
[1646687700043,0.15899997,37853.0,37835.0,0.17294221]
[1646687700242,1.63408,37854.0,37831.0,0.05]
[1646687700243,0.15899997,37847.0,37831.0,0.05]
[1646687700444,0.96779997,37844.0,37825.0,0.5]
[1646687700642,0.40920231,37849.0,37826.0,0.05802376]
[1646687700643,0.26338593,37837.0,37826.0,0.05802376]
[1646687700841,0.26338593,37837.0,37821.0,0.16]
[1646687701042,0.21048354,37831.0,37821.0,0.44089388]
[1646687701240,0.26177686,37833.0,37832.0,0.42096707]
[1646687701443,1.07218593,37837.0,37832.0,0.42096707]
[1646687701743,0.0486,37836.0,37832.0,0.42096707]
[1646687701990,0.0486,37835.0,37832.0,0.42096707]
[1646687702182,0.0486,37834.0,37832.0,0.42096707]
[1646687702384,0.0486,37834.0,37833.0,0.24287488]
[1646687703385,0.03480537,37834.0,37833.0,0.24287488]
[1646687703984,0.03480537,37834.0,37833.0,0.53577254]
[1646687704191,0.1486,37847.0,37833.0,0.703902]
[1646687704490,0.0486,37847.0,37842.0,0.15]
[1646687704689,0.1,37853.0,37845.0,0.15]
[1646687704889,0.1,37853.0,37848.0,0.15]
[1646687705090,0.4893,37863.0,37852.0,0.29478776]
[1646687705091,0.27313503,37859.0,37852.0,0.29478776]
[1646687705292,0.1,37863.0,37852.0,0.59478776]
[1646687705488,0.1,37863.0,37856.0,0.15]
[1646687705739,0.28272749,37861.0,37856.0,0.15]
[1646687706035,0.28272749,37861.0,37852.0,0.59478776]
[1646687706334,0.28372749,37861.0,37856.0,8.709e-05]
[1646687706533,0.28372749,37861.0,37858.0,0.15]
[1646687706732,0.28372749,37861.0,37857.0,0.15]
[1646687706938,0.28372749,37861.0,37856.0,8.709e-05]
[1646687706939,1.2678,37860.0,37856.0,8.709e-05]
[1646687707141,0.9574,37859.0,37851.0,0.003]
[1646687707333,0.32827432,37852.0,37851.0,0.003]
[1646687707542,0.39553376,37852.0,37839.0,0.2]
[1646687707741,0.39553376,37852.0,37835.0,0.15]
[1646687707742,0.37687432,37852.0,37835.0,0.15]
[1646687707937,0.19873563,37847.0,37836.0,0.15]
[1646687708138,1.1574,37846.0,37832.0,0.42096707]
[1646687708335,0.26882098,37838.0,37832.0,0.42096707]
[1646687708534,1.4164,37846.0,37842.0,8.712e-05]
[1646687708535,1.3678,37846.0,37842.0,8.712e-05]
[1646687708734,0.9678,37844.0,37842.0,8.712e-05]
[1646687708934,0.8574,37843.0,37842.0,8.712e-05]
[1646687709138,1.66399835,37843.0,37842.0,8.712e-05]
[1646687709334,1.60838982,37843.0,37842.0,8.712e-05]
[1646687709603,0.21039306,37841.0,37832.0,0.67734234]
[1646687709808,0.0486,37840.0,37832.0,0.67734234]
[1646687710005,0.0461,37839.0,37836.0,0.15]
[1646687710310,0.0486,37838.0,37836.0,0.15]
[1646687710505,0.0486,37837.0,37832.0,0.67734234]
[1646687710708,0.0486,37837.0,37836.0,0.15]
[1646687710907,0.27333038,37843.0,37842.0,0.26297802]
[1646687711104,0.27333038,37843.0,37842.0,0.41297802]
[1646687711310,0.27333038,37843.0,37842.0,0.81688002]
[1646687712104,0.27333038,37843.0,37842.0,0.41297802]
[1646687712508,0.27333038,37843.0,37842.0,0.81688002]
[1646687712710,0.25704199,37843.0,37842.0,1.14340002]
[1646687712906,0.1,37852.0,37844.0,0.430422]
[1646687713106,0.497,37861.0,37845.0,0.3]
[1646687713337,0.15,37866.0,37851.0,0.15]
[1646687713639,0.25413364,37859.0,37855.0,0.23716965]
[1646687714038,0.1,37866.0,37850.0,0.3]
[1646687714239,0.597,37870.0,37858.0,0.15]
[1646687714437,0.597,37870.0,37867.0,0.3]
[1646687714640,0.01865944,37868.0,37867.0,0.3]
[1646687715039,0.47942177,37868.0,37867.0,0.3]
[1646687715239,1.6,37867.0,37855.0,0.15006929]
[1646687715440,0.29795093,37856.0,37855.0,0.15]
[1646687715939,0.1,37866.0,37855.0,0.15]
[1646687716140,0.21509681,37862.0,37853.0,0.3]
[1646687716339,0.21509681,37862.0,37857.0,0.15]
[1646687716540,0.2076,37871.0,37857.0,0.15]
[1646687716541,0.0486,37871.0,37857.0,0.15]
[1646687716741,0.30866207,37864.0,37857.0,0.15]
[1646687716993,0.1033,37873.0,37861.0,0.25689381]
[1646687717197,0.1033,37873.0,37862.0,0.3]
[1646687717397,0.0033,37873.0,37869.0,0.15]
[1646687717594,0.00264323,37870.0,37869.0,0.15]
[1646687717795,0.00264323,37870.0,37869.0,0.553902]
[1646687717993,0.00264323,37870.0,37869.0,0.94444387]
[1646687717994,0.00264306,37870.0,37869.0,0.94444387]
[1646687718193,0.0033,37873.0,37870.0,0.403902]
[1646687718398,0.0033,37873.0,37872.0,0.15]
[1646687718593,0.0033,37873.0,37870.0,0.15]
[1646687719193,0.25939759,37872.0,37870.0,0.15]
[1646687719393,0.0033,37873.0,37870.0,0.15]
[1646687719795,0.0033,37873.0,37865.0,0.2793063]
[1646687719796,0.0033,37873.0,37871.0,0.15]
[1646687720195,0.0033,37873.0,37871.0,0.35963623]
[1646687720397,0.0033,37873.0,37871.0,0.15]
[1646687721341,0.0033,37873.0,37871.0,0.23973]
[1646687721539,0.0022,37873.0,37872.0,0.3]
[1646687721938,0.0011,37873.0,37872.0,0.59391341]
[1646687722238,0.0011,37877.0,37875.0,0.535932]
[1646687722438,0.0011,37880.0,37876.0,0.880422]
[1646687722645,0.0011,37880.0,37879.0,0.580422]
[1646687722836,0.0011,37880.0,37879.0,1.03413897]
[1646687723036,0.0011,37880.0,37879.0,0.853902]
[1646687723336,0.0011,37880.0,37879.0,0.553902]
[1646687723537,0.0011,37880.0,37879.0,0.3712741]
[1646687723738,0.0011,37880.0,37876.0,0.15]
[1646687723938,0.0011,37880.0,37873.0,0.00329999]
[1646687724138,0.0011,37880.0,37878.0,0.15]
[1646687724338,0.0011,37880.0,37879.0,0.403902]
[1646687724589,0.0011,37880.0,37879.0,0.703902]
[1646687724792,0.0011,37880.0,37879.0,0.3]
[1646687724987,0.0011,37880.0,37878.0,0.15]
[1646687725190,0.0011,37880.0,37879.0,0.403902]
[1646687725389,0.0011,37880.0,37878.0,0.15]
[1646687725588,0.0011,37880.0,37879.0,0.63274696]
[1646687725789,0.0011,37880.0,37879.0,0.52884496]
[1646687725988,0.0011,37880.0,37879.0,0.22884496]
[1646687726691,0.2705314,37892.0,37880.0,0.05652632]
[1646687726890,0.2705314,37892.0,37880.0,0.45]
[1646687726891,0.16566454,37888.0,37880.0,0.45]
[1646687727089,0.16566454,37888.0,37880.0,0.15]
[1646687727288,0.23545373,37882.0,37880.0,0.15]
[1646687727893,0.16566454,37888.0,37876.0,0.3]
[1646687727894,0.97446454,37888.0,37876.0,0.3]
[1646687728093,0.06073338,37887.0,37873.0,0.00329999]
[1646687728344,0.20660562,37879.0,37873.0,0.00329999]
[1646687728943,0.1718071,37880.0,37875.0,0.15]
[1646687729142,0.066054,37879.0,37873.0,0.00329999]
[1646687729542,0.0486,37882.0,37873.0,0.00329999]
[1646687729742,0.1,37883.0,37876.0,0.403902]
[1646687729945,0.1,37883.0,37882.0,0.403902]
[1646687730244,0.0099,37888.0,37882.0,0.403902]
[1646687730245,0.0099,37888.0,37882.0,0.703902]
[1646687730445,0.26321884,37887.0,37884.0,0.15]
[1646687730842,0.26321884,37887.0,37885.0,0.403902]
[1646687731040,0.1,37896.0,37885.0,0.06601616]
[1646687731240,0.9188,37899.0,37885.0,0.3]
[1646687731445,0.1,37896.0,37884.0,0.15]
[1646687731643,0.09806313,37896.0,37882.0,0.3]
[1646687731843,0.101,37897.0,37882.0,0.3]
[1646687732100,0.29304963,37894.0,37887.0,0.2956211]
[1646687732906,0.0011,37897.0,37888.0,0.703902]
[1646687733106,0.0011,37897.0,37896.0,0.15]
[1646687733304,0.0011,37897.0,37896.0,0.553902]
[1646687733906,0.0011,37897.0,37896.0,0.84182637]
[1646687734105,0.0011,37897.0,37896.0,1.14182637]
[1646687734307,0.0011,37907.0,37900.0,0.02652]
[1646687734511,0.0011,37907.0,37904.0,0.15]
[1646687734708,0.0011,37907.0,37904.0,0.553902]
[1646687734905,0.0011,37907.0,37905.0,0.403902]
[1646687735106,0.0011,37907.0,37905.0,0.46949239]
[1646687735305,0.0011,37907.0,37905.0,0.70854933]
[1646687735510,0.0011,37907.0,37905.0,0.73506933]
[1646687735761,0.0011,37907.0,37905.0,0.30656694]
[1646687735958,0.0011,37907.0,37905.0,0.06751]
[1646687736157,0.00011786,37907.0,37904.0,0.15]
[1646687736356,0.00011786,37907.0,37900.0,0.01319]
[1646687736555,0.00011786,37907.0,37900.0,0.01819]
[1646687736755,0.00011786,37907.0,37901.0,0.15]
[1646687736956,0.00011786,37907.0,37902.0,0.15]
[1646687737156,0.24247482,37912.0,37902.0,0.15]
[1646687737357,0.00011786,37906.0,37902.0,0.15]
[1646687737954,0.00011786,37906.0,37899.0,8.783e-05]
[1646687737955,0.27333685,37905.0,37899.0,8.783e-05]
[1646687738457,0.27333685,37905.0,37897.0,0.003]
[1646687738656,0.33934385,37905.0,37899.0,8.783e-05]
[1646687739486,0.33934385,37905.0,37897.0,0.003]
[1646687739487,0.39477942,37905.0,37897.0,0.003]
[1646687739686,0.33934385,37905.0,37899.0,8.783e-05]
[1646687739885,0.22165954,37900.0,37899.0,8.783e-05]
[1646687740088,0.22165954,37900.0,37892.0,0.00588383]
[1646687740284,0.26923852,37898.0,37892.0,0.00588383]
[1646687740689,0.22165954,37900.0,37893.0,0.403902]
[1646687740884,0.22165954,37900.0,37892.0,0.15588383]
[1646687741186,0.1,37907.0,37892.0,0.15588383]
[1646687741385,0.1,37907.0,37894.0,0.06600172]
[1646687741585,0.24755342,37906.0,37894.0,0.06100172]
[1646687741786,0.24755342,37906.0,37894.0,0.12699572]
[1646687742185,0.24755342,37906.0,37895.0,0.403902]
[1646687742186,0.16673842,37903.0,37895.0,0.403902]
[1646687742387,0.16673842,37903.0,37896.0,0.06599452]
[1646687742588,0.16673842,37903.0,37894.0,0.403902]
[1646687742789,0.29593676,37897.0,37894.0,0.403902]
[1646687743236,0.16673842,37903.0,37894.0,0.403902]
[1646687743538,0.16673842,37903.0,37892.0,0.00588383]
[1646687743733,0.16673842,37903.0,37893.0,0.15]
[1646687744135,0.16673842,37903.0,37897.0,0.25754617]
[1646687744434,0.31978962,37905.0,37897.0,0.25754617]
[1646687744635,0.31978962,37905.0,37896.0,8.761e-05]
[1646687744636,0.00013188,37905.0,37896.0,8.761e-05]
[1646687744834,0.00013188,37905.0,37897.0,0.403902]
[1646687745235,0.00013188,37905.0,37900.0,0.15]
[1646687745433,0.00013188,37905.0,37901.0,0.403902]
[1646687745634,0.28904586,37903.0,37901.0,0.403902]
[1646687745836,0.18332803,37906.0,37903.0,0.28461205]
[1646687745837,0.00013189,37905.0,37903.0,0.28461205]
[1646687746455,0.00413189,37905.0,37903.0,0.28461205]
[1646687746837,0.004,37905.0,37903.0,0.28461205]
[1646687747688,0.2641752,37906.0,37903.0,0.28461205]
[1646687747892,0.26404331,37906.0,37903.0,0.28461205]
[1646687748090,0.25904331,37906.0,37903.0,0.28461205]
[1646687748291,0.00013189,37906.0,37903.0,0.28461205]
[1646687748497,0.00413189,37906.0,37905.0,0.553902]
[1646687748694,0.00413189,37906.0,37905.0,0.703902]
[1646687748894,0.00413189,37906.0,37905.0,0.553902]
[1646687749295,0.004,37906.0,37905.0,0.553902]
[1646687749495,0.31184184,37920.0,37906.0,2.003902]
[1646687749700,0.0011,37920.0,37908.0,0.02652]
[1646687749897,0.0011,37925.0,37920.0,0.403902]
[1646687750095,0.0011,37930.0,37924.0,0.403902]
[1646687750298,0.0011,37935.0,37930.0,0.02652]
[1646687750506,0.0011,37935.0,37933.0,0.79092078]
[1646687750749,0.0011,37935.0,37933.0,0.553915]
[1646687750945,0.0011,37935.0,37933.0,0.853915]
[1646687751151,0.0011,37935.0,37933.0,0.553915]
[1646687751345,0.0011,37935.0,37933.0,0.853915]
[1646687751550,0.0011,37935.0,37933.0,0.553915]
[1646687752055,0.0011944,37935.0,37933.0,0.553915]
[1646687752250,0.0011944,37935.0,37933.0,0.403915]
[1646687752451,0.0011944,37935.0,37931.0,0.05669786]
[1646687752649,0.00458,37934.0,37932.0,0.403915]
[1646687752847,0.21242653,37933.0,37932.0,0.393915]
[1646687753248,0.21242653,37933.0,37921.0,0.15]
[1646687753450,0.21242653,37933.0,37920.0,0.05]
[1646687753451,0.3,37932.0,37920.0,0.05]
[1646687753654,0.073756,37931.0,37920.0,0.05]
[1646687753847,0.3,37930.0,37920.0,0.05]
[1646687754052,0.073756,37929.0,37917.0,0.007309]
[1646687754248,0.36131028,37929.0,37917.0,0.007309]
[1646687754486,0.50963433,37929.0,37919.0,0.002]
[1646687755085,0.073756,37928.0,37919.0,0.002]
[1646687755284,0.073756,37927.0,37919.0,0.002]
[1646687755486,0.139721,37926.0,37919.0,0.002]
[1646687755686,0.073756,37925.0,37916.0,0.17272251]
[1646687755885,0.19837788,37925.0,37916.0,0.17272251]
[1646687756088,0.00013258,37928.0,37925.0,0.403897]
[1646687756486,0.05,37931.0,37925.0,0.403897]
[1646687756889,0.00013258,37926.0,37925.0,0.403897]
[1646687757490,0.00013258,37926.0,37925.0,0.703897]
[1646687757690,0.00458,37934.0,37933.0,0.107808]
[1646687757889,0.00458,37934.0,37933.0,0.88142556]
[1646687758091,0.0022,37941.0,37934.0,2.003897]
[1646687758341,0.0022,37941.0,37938.0,0.15]
[1646687758540,0.0022,37941.0,37939.0,0.703897]
[1646687758739,0.00308796,37943.0,37940.0,0.55]
[1646687758947,0.00127318,37955.0,37951.0,0.05609537]
[1646687759141,0.00127318,37955.0,37952.0,0.703897]
[1646687759348,0.0006702,37960.0,37955.0,1.6]
[1646687759546,0.0006702,37960.0,37959.0,0.15]
[1646687759738,0.0011,37967.0,37962.0,0.06587]
[1646687759940,0.0011,37967.0,37963.0,0.403897]
[1646687760143,0.0011,37967.0,37966.0,0.15]
[1646687760346,0.00361825,37967.0,37961.0,0.15]
[1646687760541,0.0011,37968.0,37957.0,0.56207767]
[1646687760542,0.31674596,37968.0,37958.0,0.005]
[1646687760746,0.1748896,37964.0,37958.0,0.005]
[1646687760943,0.1748896,37964.0,37959.0,0.403897]
[1646687761143,0.1748896,37964.0,37958.0,0.005]
[1646687761344,0.3,37963.0,37958.0,0.005]
[1646687761553,0.1748896,37964.0,37958.0,0.005]
[1646687761742,0.30669107,37964.0,37958.0,0.005]
[1646687761996,0.30669107,37964.0,37955.0,0.403897]
[1646687761997,0.065901,37961.0,37955.0,0.403897]
[1646687762189,0.060901,37961.0,37951.0,0.403897]
[1646687762689,0.2007632,37956.0,37954.0,0.403897]
[1646687762889,0.065902,37958.0,37955.0,9e-05]
[1646687763091,0.3177604,37957.0,37955.0,9e-05]
[1646687763590,0.131806,37958.0,37956.0,0.403897]
[1646687763789,0.131806,37958.0,37955.0,9e-05]
[1646687764094,0.131806,37958.0,37956.0,0.403897]
[1646687764490,0.26361733,37958.0,37956.0,0.403897]
[1646687764992,1.6,37956.0,37950.0,0.001]
[1646687765191,0.481845,37955.0,37950.0,0.001]
[1646687765591,0.61368392,37955.0,37950.0,0.001]
[1646687765836,0.19332015,37947.0,37940.0,0.26913592]
[1646687766036,0.19332015,37947.0,37941.0,0.403897]
[1646687766237,0.131836,37946.0,37941.0,0.403897]
[1646687767239,0.131836,37946.0,37938.0,0.01316]
[1646687767240,0.21865944,37942.0,37938.0,0.01316]
[1646687767439,0.21865944,37942.0,37937.0,0.02587]
[1646687767440,0.073756,37938.0,37937.0,0.02587]
[1646687767645,0.01865944,37938.0,37937.0,0.02587]
[1646687767838,0.05,37940.0,37937.0,0.02587]
[1646687768038,0.065945,37941.0,37938.0,0.403897]
[1646687768647,0.065915,37950.0,37941.0,0.403897]
[1646687768842,0.065915,37950.0,37947.0,0.15]
[1646687769040,0.1,37966.0,37948.0,0.403897]
[1646687769247,0.13182,37956.0,37943.0,0.403897]
[1646687769492,0.24268546,37954.0,37943.0,0.403897]
[1646687769689,0.19006697,37952.0,37943.0,0.403897]
[1646687769889,0.24268546,37954.0,37951.0,9.911e-05]
[1646687770294,0.065908,37953.0,37951.0,9.911e-05]
[1646687770492,1.465908,37953.0,37943.0,0.15]
[1646687770693,0.065908,37953.0,37943.0,0.15]
[1646687770893,0.065908,37953.0,37944.0,0.403897]
[1646687771193,0.28396924,37953.0,37944.0,0.64030017]
[1646687771392,0.34988824,37953.0,37944.0,0.23640317]
[1646687771592,0.065917,37951.0,37943.0,0.15]
[1646687771795,0.065914,37949.0,37943.0,0.15]
[1646687771992,0.065914,37949.0,37944.0,0.403897]
[1646687772194,0.19065136,37946.0,37940.0,0.05]
[1646687772392,0.19065136,37946.0,37941.0,0.403897]
[1646687772793,0.297638,37961.0,37941.0,0.67540951]
[1646687772995,0.247769,37956.0,37941.0,0.67540951]
[1646687773252,0.247769,37956.0,37947.0,0.27057635]
[1646687773842,0.54212384,37954.0,37947.0,0.27057635]
[1646687774043,0.54212384,37954.0,37941.0,0.15]
[1646687774044,0.65802984,37954.0,37941.0,0.15]
[1646687774243,0.65802984,37954.0,37942.0,0.403897]
[1646687774244,0.131835,37952.0,37942.0,0.403897]
[1646687774446,0.1318489,37950.0,37942.0,0.405897]
[1646687774644,0.1318489,37950.0,37949.0,9.887e-05]
[1646687774944,0.1977577,37952.0,37949.0,0.403897]
[1646687775145,0.1,37953.0,37949.0,0.553897]
[1646687775346,0.131816,37957.0,37949.0,0.553897]
[1646687775545,0.13183,37955.0,37949.0,0.403897]
[1646687775744,0.13183,37955.0,37944.0,0.3]
[1646687775944,0.26395806,37951.0,37946.0,0.403897]
[1646687776146,0.0659223,37950.0,37946.0,0.403897]
[1646687776546,0.22042279,37952.0,37946.0,0.403897]
[1646687776747,0.131833,37954.0,37946.0,0.403897]
[1646687777003,0.131833,37954.0,37945.0,0.403897]
[1646687777200,0.065921,37949.0,37945.0,0.403897]
[1646687777998,0.065921,37949.0,37944.0,0.403897]
[1646687778398,0.30958146,37948.0,37944.0,0.403897]
[1646687778998,0.065921,37949.0,37944.0,0.403897]
[1646687779200,0.065921,37949.0,37943.0,0.00088684]
[1646687779201,0.073756,37948.0,37943.0,0.00088684]
[1646687779402,0.2,37954.0,37944.0,9.864e-05]
[1646687779403,0.065938,37946.0,37944.0,9.864e-05]
[1646687779604,0.065937,37947.0,37945.0,1.7]
[1646687779802,0.1,37950.0,37945.0,1.7]
[1646687779803,0.1,37950.0,37948.0,0.19781099]
[1646687780002,0.1,37965.0,37950.0,1.6]
[1646687780200,0.1,37965.0,37955.0,0.403775]
[1646687780400,0.32085967,37966.0,37957.0,0.403775]
[1646687780401,0.32072693,37966.0,37957.0,0.403775]
[1646687780848,0.32072693,37966.0,37949.0,0.403775]
[1646687780849,0.0999,37965.0,37949.0,0.403775]
[1646687781246,0.23453082,37958.0,37949.0,0.703775]
[1646687781444,0.23453082,37958.0,37949.0,0.403775]
[1646687781645,0.23453082,37958.0,37949.0,0.703775]
[1646687781847,0.065902,37961.0,37955.0,0.15]
[1646687782047,0.004228,37969.0,37957.0,0.15]
[1646687782248,0.004228,37969.0,37958.0,0.403775]
[1646687782649,0.065889,37968.0,37957.0,0.15]
[1646687782849,0.20707394,37965.0,37959.0,0.41446531]
[1646687783147,0.20707394,37965.0,37954.0,0.15]
[1646687783348,0.20707394,37965.0,37952.0,0.15]
[1646687783547,0.20707394,37965.0,37954.0,0.15]
[1646687783747,0.20707394,37965.0,37955.0,0.853775]
[1646687783948,0.23139564,37957.0,37955.0,0.553775]
[1646687784152,0.004228,37969.0,37957.0,0.02652]
[1646687784355,0.00184679,37979.0,37970.0,2.25826999]
[1646687784356,0.1,37974.0,37970.0,2.25826999]
[1646687784614,0.00231723,37976.0,37973.0,0.15]
[1646687784810,0.00184679,37979.0,37965.0,0.15]
[1646687784811,0.00184679,37979.0,37977.0,0.02652]
[1646687785099,0.00184679,37979.0,37978.0,0.90932892]
[1646687785310,0.0033,37988.0,37979.0,1.62652]
[1646687785504,0.0011,37996.0,37987.0,0.95]
[1646687785806,2.48281056,38000.0,37995.0,0.403775]
[1646687786012,0.1,38008.0,38001.0,0.403775]
[1646687786201,0.0011,38014.0,38004.0,1.6]
[1646687786398,0.0725,38013.0,38012.0,0.403775]
[1646687786601,0.0725,38013.0,38012.0,0.703775]
[1646687786602,0.0722,38013.0,38012.0,0.703775]
[1646687786803,0.0722,38013.0,38012.0,0.87591954]
[1646687787102,0.0103,38013.0,38012.0,0.87591954]
[1646687787405,0.01,38019.0,38015.0,0.07183954]
[1646687787600,0.0007,38029.0,38017.0,0.403775]
[1646687787800,0.0007,38029.0,38018.0,0.403775]
[1646687787999,0.3,38019.0,38013.0,0.07214454]
[1646687788262,0.3,38019.0,38002.0,0.07214454]
[1646687788263,0.25555599,38016.0,38002.0,0.07214454]
[1646687788456,0.0011,38018.0,38008.0,0.403775]
[1646687788656,0.0572886,38018.0,38001.0,0.2483]
[1646687788857,0.0011,38018.0,38002.0,0.403775]
[1646687789256,0.00013376,38015.0,38006.0,0.07214454]
[1646687789459,0.00013376,38015.0,38007.0,0.27947777]
[1646687789660,3.76e-06,38015.0,38014.0,0.25327276]
[1646687789862,0.4543,38040.0,38021.0,0.25]
[1646687790064,0.01509605,38060.0,38039.0,0.25]
[1646687790065,0.05495688,38052.0,38039.0,0.25]
[1646687790259,0.0073168,38074.0,38042.0,0.25]
[1646687790458,0.23585151,38067.0,38047.0,0.0147079]
[1646687790659,0.68585151,38067.0,38049.0,1.211867]
[1646687790862,0.26260296,38060.0,38050.0,0.0435]
[1646687791064,0.26260296,38060.0,38051.0,0.40243791]
[1646687791065,0.145,38060.0,38051.0,0.40243791]
[1646687791260,0.145,38058.0,38051.0,0.40243791]
[1646687791466,0.2,38071.0,38051.0,0.40243791]
[1646687791467,0.45996137,38100.0,38057.0,0.3]
[1646687791665,0.45996137,38100.0,38052.0,2.451567]
[1646687791666,0.356106,38100.0,38087.0,0.6067]
[1646687791866,0.01,38109.0,38099.0,3.09874741]
[1646687791867,0.06712609,38101.0,38099.0,3.09874741]
[1646687792111,0.03939492,38119.0,38099.0,3.09874741]
[1646687792112,4.29302754,38114.0,38104.0,0.1989]
[1646687792305,4.29302754,38114.0,38113.0,1.32758194]
[1646687792306,4.14832754,38114.0,38113.0,1.32758194]
[1646687792509,2.40327729,38114.0,38113.0,1.54009334]
[1646687792709,2.40327729,38114.0,38113.0,1.0719054]
[1646687792904,2.40327729,38114.0,38113.0,1.59990576]
[1646687793103,2.40327729,38114.0,38113.0,1.29990576]
[1646687793305,0.036,38135.0,38113.0,0.1636114]
[1646687793502,0.036,38135.0,38121.0,0.07800036]
[1646687793703,0.07150952,38122.0,38121.0,0.54646391]
[1646687794004,0.07150952,38122.0,38108.0,0.1]
[1646687794005,0.00012775,38115.0,38108.0,0.1]
[1646687794202,0.2,38132.0,38110.0,0.3]
[1646687794404,0.2,38132.0,38100.0,0.131168]
[1646687794405,0.0485,38139.0,38107.0,0.402104]
[1646687794607,0.23315525,38128.0,38108.0,0.3]
[1646687794908,0.26696343,38126.0,38109.0,0.452104]
[1646687795103,0.06176008,38124.0,38111.0,0.402104]
[1646687795306,0.06176008,38124.0,38113.0,0.402104]
[1646687795505,0.06176008,38124.0,38105.0,0.3]
[1646687795506,0.174803,38123.0,38105.0,0.3]
[1646687795768,0.05676008,38124.0,38106.0,0.402104]
[1646687795971,0.05676008,38124.0,38100.0,0.036]
[1646687795972,0.23662498,38110.0,38100.0,0.036]
[1646687796170,0.23662498,38110.0,38091.0,0.01]
[1646687796171,0.30691228,38102.0,38091.0,0.01]
[1646687796373,0.223303,38101.0,38091.0,0.01]
[1646687796569,2.274803,38100.0,38095.0,0.004]
[1646687796775,2.274803,38100.0,38072.0,0.1723235]
[1646687796776,2.023303,38099.0,38072.0,0.1723235]
[1646687797071,2.023303,38099.0,38071.0,2.4896753]
[1646687797072,0.3,38098.0,38079.0,0.0999]
[1646687797269,0.0485,38097.0,38079.0,0.0999]
[1646687797470,0.2,38095.0,38079.0,0.0999]
[1646687797669,0.26367185,38092.0,38079.0,0.0999]
[1646687797875,0.0485,38094.0,38080.0,0.402104]
[1646687798074,0.16627196,38103.0,38087.0,0.01660611]
[1646687798275,0.2,38106.0,38092.0,0.0143041]
[1646687798474,0.3,38111.0,38093.0,0.402318]
[1646687798475,1.0866,38111.0,38093.0,0.402318]
[1646687798671,0.3,38110.0,38095.0,0.01497134]
[1646687798870,0.3,38110.0,38086.0,0.02655128]
[1646687798871,2.05,38102.0,38086.0,0.02655128]
[1646687799071,2.05,38102.0,38085.0,0.00012521]
[1646687799072,0.402246,38097.0,38085.0,0.00012521]
[1646687799271,6.39753633,38086.0,38085.0,0.00012521]
[1646687799695,6.44629917,38086.0,38061.0,0.01]
[1646687799895,6.41237594,38081.0,38068.0,0.402246]
[1646687800098,6.2,38075.0,38068.0,0.402246]
[1646687800295,6.2,38069.0,38068.0,0.402246]
[1646687800508,2.02748369,38069.0,38068.0,0.402246]
[1646687800697,0.7866,38088.0,38068.0,0.82352448]
[1646687800895,0.7866,38088.0,38074.0,0.402246]
[1646687800896,1.32748369,38087.0,38074.0,0.402246]
[1646687801095,1.32748369,38087.0,38076.0,0.15]
[1646687801408,0.32788369,38101.0,38086.0,0.15]
[1646687801627,0.8122,38111.0,38088.0,0.9]
[1646687801799,0.6197,38120.0,38107.0,0.15]
[1646687801997,0.0011,38125.0,38108.0,0.702246]
[1646687802198,0.0011,38125.0,38111.0,0.15]
[1646687802395,0.0011,38125.0,38112.0,0.702246]
[1646687802596,0.29909421,38116.0,38107.0,0.06757745]
[1646687802802,0.29909421,38116.0,38108.0,0.392246]
[1646687802995,0.27591511,38123.0,38108.0,0.392246]
[1646687803293,0.0011,38122.0,38104.0,0.3]
[1646687803485,0.0011,38122.0,38105.0,0.402193]
[1646687803685,0.0011,38122.0,38110.0,9.63e-06]
[1646687803686,0.21350059,38118.0,38110.0,9.63e-06]
[1646687803892,0.0011,38122.0,38110.0,9.63e-06]
[1646687803893,0.402193,38117.0,38110.0,9.63e-06]
[1646687804086,0.45,38119.0,38110.0,9.63e-06]
[1646687804087,0.0485,38116.0,38110.0,9.63e-06]
[1646687804287,0.700693,38115.0,38110.0,9.63e-06]
[1646687804591,0.2985,38115.0,38090.0,0.29804095]
[1646687804789,0.18805645,38101.0,38090.0,0.29804095]
[1646687804986,0.18805645,38101.0,38086.0,0.3]
[1646687805186,0.18805645,38101.0,38085.0,0.00145387]
[1646687805187,0.24543067,38098.0,38085.0,0.00145387]
[1646687805786,0.2024048,38094.0,38085.0,0.00145387]
[1646687805990,0.3,38097.0,38085.0,0.00145387]
[1646687806288,0.3,38099.0,38085.0,0.00145387]
[1646687806487,0.3,38101.0,38085.0,0.00145387]
[1646687806688,0.24696626,38102.0,38085.0,0.00145387]
[1646687806689,0.29106626,38102.0,38085.0,0.00145387]
[1646687806889,0.18072924,38097.0,38085.0,0.00145387]
[1646687807092,0.18072924,38097.0,38091.0,0.0001335]
[1646687807292,0.0441,38102.0,38091.0,0.0001335]
[1646687807891,0.3,38101.0,38091.0,0.0001335]
[1646687808093,0.3,38101.0,38085.0,0.00145387]
[1646687808292,0.24144523,38097.0,38086.0,0.402193]